bitfinex-derivatives/quotes_BTCF0:USTF0_20250411
["timestamp","ask_amount","ask_price","bid_price","bid_amount"]
[1744360445399,0.2304998,81335.0,81334.0,0.74463972]
[1744360445697,0.2304998,81335.0,81334.0,0.62161862]
[1744360450100,0.2304998,81335.0,81334.0,0.74463972]
[1744360452304,0.2304998,81335.0,81334.0,0.62161862]
[1744360452793,0.2304998,81335.0,81334.0,0.74463972]
[1744360452993,0.2304998,81335.0,81334.0,0.74467972]
[1744360453503,0.2304998,81335.0,81334.0,0.26085862]
[1744360454395,0.2304998,81335.0,81334.0,4e-05]
[1744360454595,0.1230241,81332.0,81331.0,0.00049181]
[1744360454907,0.4838241,81332.0,81331.0,0.00049181]
[1744360456408,0.4838241,81332.0,81331.0,0.00053181]
[1744360458696,0.4838241,81332.0,81331.0,0.00049181]
[1744360458896,0.4838241,81332.0,81331.0,0.00053181]
[1744360459095,0.1230241,81332.0,81331.0,0.00053181]
[1744360459906,0.2301441,81332.0,81331.0,0.00053181]
[1744360461606,0.5909441,81332.0,81331.0,0.00049181]
[1744360461801,0.2301441,81332.0,81331.0,0.00053181]
[1744360462505,0.4332441,81332.0,81331.0,0.00053181]
[1744360462708,0.2301441,81332.0,81331.0,0.00053181]
[1744360463199,0.3323441,81332.0,81331.0,0.00053181]
[1744360463807,0.4375441,81332.0,81331.0,0.00053181]
[1744360464712,0.4375441,81332.0,81331.0,0.00049181]
[1744360464909,0.4375441,81332.0,81331.0,0.00053181]
[1744360477112,0.4375441,81332.0,81331.0,0.00049181]
[1744360477317,0.4375441,81332.0,81331.0,0.00053181]
[1744360477713,0.4375441,81332.0,81331.0,0.00049181]
[1744360477919,0.4375441,81332.0,81331.0,0.00053181]
[1744360480615,0.4375441,81332.0,81331.0,0.00049181]
[1744360480811,0.4375441,81332.0,81331.0,0.00053181]
[1744360482116,0.4375441,81332.0,81331.0,0.00049181]
[1744360482424,0.4375441,81332.0,81331.0,0.00053181]
[1744360483124,0.4375441,81332.0,81331.0,1e-08]
[1744360483427,0.4375441,81332.0,81325.0,5.4e-05]
[1744360483428,0.1230332,81326.0,81325.0,5.4e-05]
[1744360483617,0.1230377,81323.0,81322.0,0.1087]
[1744360483816,0.1230483,81316.0,81315.0,0.408254]
[1744360484120,0.1230528,81313.0,81312.0,0.2016]
[1744360484522,0.1230528,81313.0,81312.0,0.23781862]
[1744360485119,0.1230528,81313.0,81312.0,0.33581862]
[1744360491321,0.1230528,81313.0,81312.0,0.23111862]
[1744360491521,0.5831528,81313.0,81312.0,0.13421862]
[1744360492029,0.5831528,81313.0,81312.0,0.13425862]
[1744360493726,0.5831528,81313.0,81312.0,4e-05]
[1744360494022,0.1230604,81308.0,81307.0,0.00049196]
[1744360494832,0.3217604,81308.0,81307.0,0.00049196]
[1744360497024,0.3217604,81308.0,81307.0,0.09929196]
[1744360497425,0.3217604,81308.0,81307.0,0.00049196]
[1744360497734,0.123068,81303.0,81302.0,7.29e-05]
[1744360498133,0.123071,81301.0,81300.0,0.194]
[1744360498319,0.483871,81301.0,81300.0,0.194]
[1744360498719,0.679971,81301.0,81300.0,0.194]
[1744360499332,0.679971,81301.0,81300.0,0.1]
[1744360499830,0.786731,81301.0,81300.0,0.00074489]
[1744360500332,0.786731,81301.0,81300.0,0.00078489]
[1744360500533,0.786731,81301.0,81300.0,0.00074489]
[1744360500733,0.786731,81301.0,81300.0,0.00078489]
[1744360500929,0.786731,81301.0,81300.0,0.00074489]
[1744360501326,0.786731,81301.0,81300.0,0.00078489]
[1744360505640,1.147531,81301.0,81300.0,0.00078489]
[1744360508038,0.425931,81301.0,81300.0,0.00078489]
[1744360508242,1.147531,81301.0,81300.0,0.00078489]
[1744360509144,0.425931,81301.0,81300.0,0.00078489]
[1744360509338,1.147531,81301.0,81300.0,0.00078489]
[1744360510141,0.786731,81301.0,81300.0,0.00078489]
[1744360510543,0.689431,81301.0,81300.0,0.03700351]
[1744360510847,0.229831,81301.0,81300.0,0.03700351]
[1744360512246,0.123071,81301.0,81300.0,0.03700351]
[1744360512446,0.061534,81303.0,81300.0,0.16007541]
[1744360512750,0.3608,81304.0,81302.0,0.03621862]
[1744360513046,0.4838665,81304.0,81303.0,0.31791862]
[1744360514146,0.1230665,81304.0,81303.0,0.31791862]
[1744360517754,0.1230665,81304.0,81303.0,0.31795862]
[1744360518542,0.1230665,81304.0,81303.0,0.31791862]
[1744360518755,0.1230665,81304.0,81303.0,0.31795862]
[1744360533061,0.1230665,81304.0,81303.0,0.03621862]
[1744360533260,0.1230665,81304.0,81303.0,0.03625862]
[1744360533556,0.2179665,81304.0,81303.0,0.03625862]
[1744360539952,0.1068,81310.0,81308.0,0.1230604]
[1744360540157,0.4838589,81309.0,81308.0,0.03621862]
[1744360540756,0.123065,81306.0,81305.0,0.1230649]
[1744360540958,0.123065,81306.0,81305.0,0.2194649]
[1744360541155,0.123065,81306.0,81305.0,0.13261862]
[1744360541358,0.216465,81306.0,81305.0,0.03621862]
[1744360541559,0.308265,81306.0,81305.0,0.03621862]
[1744360542265,0.308265,81306.0,81305.0,0.12695862]
[1744360543664,0.308265,81306.0,81305.0,0.09074]
[1744360545268,0.308265,81306.0,81305.0,0.12695862]
[1744360546071,0.216465,81306.0,81305.0,0.12695862]
[1744360546274,0.216465,81306.0,81305.0,0.25002362]
[1744360546573,0.216465,81306.0,81305.0,0.21975862]
[1744360546967,0.216465,81306.0,81305.0,0.34282362]
[1744360547366,0.1064,81308.0,81307.0,0.1230619]
[1744360547566,0.12324159,81311.0,81310.0,0.1230574]
[1744360547867,0.12324039,81311.0,81310.0,0.03621862]
[1744360548184,0.48404039,81311.0,81310.0,0.03621862]
[1744360548479,0.48404039,81311.0,81310.0,0.12355862]
[1744360548769,0.00018449,81311.0,81310.0,0.12355862]
[1744360548965,0.00018449,81311.0,81310.0,0.24661602]
[1744360549161,0.00018449,81311.0,81310.0,0.60741602]
[1744360549863,0.12324039,81311.0,81310.0,0.60741602]
[1744360550364,0.00018449,81311.0,81310.0,0.60741602]
[1744360551968,0.2207304,81315.0,81314.0,0.1230513]
[1744360552276,0.2207304,81315.0,81314.0,0.15926992]
[1744360552768,0.2822483,81325.0,81314.0,0.15926992]
[1744360552975,0.2822483,81325.0,81324.0,0.3608]
[1744360553274,0.2822483,81325.0,81324.0,0.39701862]
[1744360553863,0.2822483,81325.0,81324.0,0.70295482]
[1744360554778,0.2207304,81325.0,81324.0,1.06375482]
[1744360555269,0.00018449,81328.0,81327.0,0.1230317]
[1744360555574,0.00018449,81328.0,81327.0,0.15925032]
[1744360558075,0.00018449,81328.0,81327.0,0.56745032]
[1744360560174,0.0615004,81348.0,81342.0,0.123009]
[1744360560175,0.1230079,81343.0,81342.0,0.123009]
[1744360560475,0.0909,81352.0,81347.0,0.03621862]
[1744360560476,0.01600723,81352.0,81347.0,0.03621862]
[1744360560679,0.13900113,81352.0,81351.0,0.15921402]
[1744360560979,0.0004,81354.0,81353.0,0.1229923]
[1744360561276,0.0004,81354.0,81353.0,0.15921092]
[1744360561878,0.0004,81354.0,81353.0,0.33461092]
[1744360563982,0.0004,81354.0,81353.0,0.74281092]
[1744360565268,0.0004,81354.0,81353.0,1.10361092]
[1744360565473,1e-07,81354.0,81353.0,1.10361092]
[1744360566383,0.0004,81378.0,81377.0,0.1229561]
[1744360566584,0.1233556,81378.0,81377.0,0.15917462]
[1744360567268,0.0004,81378.0,81377.0,0.15917462]
[1744360567878,0.0004,81378.0,81377.0,0.33707462]
[1744360570383,0.00018437,81386.0,81382.0,0.0614736]
[1744360570574,0.00157724,81402.0,81387.0,0.0614704]
[1744360570771,0.2704801,81401.0,81400.0,0.1229198]
[1744360570967,0.27055301,81401.0,81400.0,0.1229198]
[1744360571172,0.2704801,81401.0,81400.0,0.15913832]
[1744360571483,0.1229213,81400.0,81399.0,0.1229218]
[1744360571673,0.1229213,81400.0,81399.0,0.15914032]
[1744360571875,0.2090213,81400.0,81399.0,0.15914032]
[1744360572177,0.2090213,81400.0,81399.0,0.24394032]
[1744360573080,0.1229228,81399.0,81398.0,0.3608]
[1744360573784,0.2152228,81399.0,81398.0,0.3608]
[1744360574477,0.2152228,81399.0,81398.0,0.4837243]
[1744360574870,0.2152228,81399.0,81398.0,0.3608]
[1744360575482,0.0923,81399.0,81398.0,0.4837243]
[1744360575785,0.00018437,81409.0,81405.0,0.0614569]
[1744360575976,0.12298211,81408.0,81407.0,0.51992932]
[1744360576177,0.1229092,81408.0,81407.0,0.69592932]
[1744360576382,0.1229492,81408.0,81407.0,0.69592932]
[1744360577185,0.1229492,81408.0,81407.0,0.4486]
[1744360577384,0.1229213,81400.0,81399.0,0.0882]
[1744360577586,0.0614598,81402.0,81398.0,0.4082]
[1744360577886,0.2092228,81399.0,81398.0,0.4082]
[1744360578280,0.2092228,81399.0,81398.0,0.40824]
[1744360581283,0.3841228,81399.0,81398.0,0.40824]
[1744360581483,0.3841228,81399.0,81398.0,4e-05]
[1744360582589,0.1229304,81394.0,81393.0,0.0878]
[1744360582890,0.1229304,81394.0,81393.0,0.12401852]
[1744360583092,0.1229304,81394.0,81393.0,0.24695042]
[1744360583390,0.1229304,81394.0,81393.0,0.33765042]
[1744360583595,0.1229704,81394.0,81393.0,0.42545042]
[1744360584386,4e-05,81394.0,81393.0,0.42545042]
[1744360584591,0.1229274,81396.0,81395.0,0.1229289]
[1744360584992,0.1229274,81396.0,81395.0,0.15914742]
[1744360585693,0.1843882,81398.0,81397.0,0.1229259]
[1744360585888,0.0614627,81398.0,81397.0,0.15914442]
[1744360586392,0.0615027,81398.0,81397.0,0.24804442]
[1744360586995,0.0614627,81398.0,81397.0,0.24804442]
[1744360587291,0.06163669,81398.0,81397.0,0.24813843]
[1744360587895,0.00017399,81398.0,81397.0,0.24813843]
[1744360588084,0.00021399,81398.0,81397.0,0.60893843]
[1744360588280,5.401e-05,81404.0,81403.0,0.1229168]
[1744360588485,0.12296931,81404.0,81403.0,0.15913532]
[1744360588890,0.21286931,81404.0,81403.0,0.15913532]
[1744360590597,0.00018437,81409.0,81408.0,0.1229092]
[1744360590796,0.00018437,81409.0,81408.0,0.15912772]
[1744360591190,0.00018437,81409.0,81408.0,0.33202772]
[1744360592501,0.6140258,81478.0,81423.0,0.1228866]
[1744360592502,0.10548,81424.0,81423.0,0.1228866]
[1744360593102,0.20915501,81426.0,81425.0,0.1228836]
[1744360593806,0.08627291,81426.0,81425.0,0.1228836]
[1744360594095,0.0004,81426.0,81425.0,0.4836836]
[1744360594298,0.00044,81426.0,81425.0,0.5740836]
[1744360595790,0.08984,81426.0,81425.0,0.5740836]
[1744360597001,0.0898,81426.0,81425.0,0.5740836]
[1744360597597,0.2126821,81426.0,81425.0,0.5740836]
[1744360598294,0.2126821,81426.0,81425.0,0.4512]
[1744360599593,0.2126821,81426.0,81425.0,0.3608]
[1744360599994,0.2126821,81426.0,81425.0,0.4519]
[1744360603404,0.1232821,81426.0,81425.0,0.4519]
[1744360605397,0.1232821,81426.0,81425.0,0.5422]
[1744360606803,0.1232821,81426.0,81425.0,0.6650836]
[1744360607311,0.0614377,81431.0,81425.0,0.57841852]
[1744360607511,0.0614377,81431.0,81430.0,0.03621852]
[1744360607808,0.06149171,81431.0,81430.0,0.03621852]
[1744360608519,0.1228821,81426.0,81425.0,0.5422]
[1744360608909,0.1228821,81426.0,81425.0,0.70130212]
[1744360609811,0.1228821,81426.0,81425.0,0.57841852]
[1744360610510,0.10530426,81434.0,81432.0,0.1228715]
[1744360610812,0.10530426,81434.0,81433.0,0.3825715]
[1744360610813,0.12305426,81434.0,81433.0,0.3825715]
[1744360611409,0.00018426,81434.0,81433.0,0.41879002]
[1744360611615,2.1138759,81497.0,81438.0,0.0614317]
[1744360611616,0.0614249,81448.0,81438.0,0.0614317]
[1744360611804,0.0614249,81448.0,81447.0,0.1228504]
[1744360612004,0.061823,81450.0,81449.0,0.1228474]
[1744360612313,0.061863,81450.0,81449.0,0.1228474]
[1744360612508,0.0004,81450.0,81449.0,0.1228474]
[1744360612810,0.1232459,81450.0,81449.0,0.0908]
[1744360613003,0.1232859,81450.0,81449.0,0.0908]
[1744360613209,0.1232859,81450.0,81449.0,0.2136474]
[1744360613702,5.401e-05,81453.0,81452.0,0.1228429]
[1744360614008,0.00012231,81458.0,81454.0,0.0614197]
[1744360614213,0.00012231,81458.0,81457.0,0.15905382]
[1744360614807,0.00016231,81458.0,81457.0,0.15905382]
[1744360615514,0.12299611,81458.0,81457.0,0.15905382]
[1744360616121,0.00016231,81458.0,81457.0,0.15905382]
[1744360617715,0.00012231,81458.0,81457.0,0.15905382]
[1744360618212,0.1842335,81466.0,81459.0,0.0614159]
[1744360618419,0.4836197,81468.0,81467.0,0.1228202]
[1744360618620,0.4836197,81468.0,81467.0,0.15903872]
[1744360618919,0.3608,81468.0,81467.0,0.15903872]
[1744360619218,0.1228587,81468.0,81467.0,0.51983872]
[1744360619418,0.1228187,81468.0,81467.0,0.69843872]
[1744360619619,0.1228587,81468.0,81467.0,0.69843872]
[1744360621820,4e-05,81468.0,81467.0,0.69843872]
[1744360622120,0.0614073,81471.0,81470.0,0.1228157]
[1744360622319,0.0614073,81471.0,81470.0,0.15903422]
[1744360623025,0.1228117,81473.0,81472.0,0.1228112]
[1744360623220,0.0855,81479.0,81475.0,0.0614038]
[1744360623424,0.0855,81479.0,81478.0,0.1228037]
[1744360624323,0.0896,81485.0,81484.0,0.1227946]
[1744360624518,0.08969842,81485.0,81484.0,0.1227946]
[1744360624921,0.17419842,81485.0,81484.0,0.1227946]
[1744360625423,0.29699152,81485.0,81484.0,0.1227946]
[1744360625932,0.29699152,81485.0,81484.0,0.2143946]
[1744360626930,0.2968931,81485.0,81484.0,0.2143946]
[1744360627528,0.2968931,81485.0,81477.0,0.1741]
[1744360627529,0.1228036,81480.0,81479.0,0.1228017]
[1744360627929,0.2987036,81480.0,81479.0,0.1228017]
[1744360630035,0.1228021,81479.0,81478.0,0.0891]
[1744360630735,0.2144021,81479.0,81478.0,0.1739]
[1744360630928,0.2994021,81479.0,81478.0,0.2967037]
[1744360632149,0.2994021,81479.0,81478.0,0.1739]
[1744360632547,0.0613899,81494.0,81478.0,0.1739]
[1744360632753,0.0916,81492.0,81489.0,0.0613928]
[1744360633051,0.1227841,81491.0,81490.0,0.2569]
[1744360633348,0.2969841,81491.0,81490.0,0.0886]
[1744360633551,0.1227976,81482.0,81481.0,0.3608]
[1744360634754,0.2119976,81482.0,81481.0,0.3608]
[1744360635252,0.2119976,81482.0,81481.0,0.4835991]
[1744360635652,0.0892,81482.0,81481.0,0.4835991]
[1744360635849,0.2119976,81482.0,81481.0,0.4835991]
[1744360636049,0.2119976,81482.0,81481.0,0.5676991]
[1744360636255,0.2119976,81482.0,81481.0,0.4449]
[1744360636848,0.2119976,81482.0,81481.0,0.48111852]
[1744360637657,0.0892,81482.0,81481.0,0.60391762]
[1744360637856,0.2119976,81482.0,81481.0,0.60391762]
[1744360638054,0.0613973,81484.0,81483.0,0.1227961]
[1744360638357,0.1227923,81486.0,81485.0,0.1227916]
[1744360638655,0.2083923,81486.0,81485.0,0.1227916]
[1744360638846,0.1227923,81486.0,81485.0,0.15901012]
[1744360639047,0.12284411,81487.0,81486.0,0.1227916]
[1744360639249,0.12284411,81487.0,81486.0,0.15901012]
[1744360640259,0.2110886,81488.0,81487.0,0.1227901]
[1744360640454,5.401e-05,81490.0,81489.0,0.1227871]
[1744360640757,0.0883,81509.0,81497.0,0.03621852]
[1744360640956,0.1227578,81509.0,81508.0,0.184134]
[1744360641147,0.1227578,81509.0,81508.0,0.544934]
[1744360641343,0.1227548,81511.0,81510.0,0.1227539]
[1744360641557,0.0883,81512.0,81511.0,0.1227539]
[1744360641943,0.1227554,81510.0,81509.0,0.2094562]
[1744360642452,5.401e-05,81515.0,81514.0,0.1227494]
[1744360642649,0.10468,81517.0,81516.0,0.1227464]
[1744360643054,0.10468,81517.0,81516.0,0.15896492]
[1744360643258,0.0004,81522.0,81521.0,0.1227389]
[1744360644358,0.1231374,81522.0,81521.0,0.1227389]
[1744360644554,0.2087374,81522.0,81521.0,0.1227389]
[1744360644755,0.1227436,81518.0,81517.0,0.1227443]
[1744360644956,0.0613702,81520.0,81519.0,0.1227413]
[1744360646861,0.0004,81522.0,81521.0,0.1227389]
[1744360647059,0.0004,81522.0,81521.0,0.15895742]
[1744360647763,0.00044,81522.0,81521.0,0.15895742]
[1744360648258,0.1227117,81540.0,81527.0,0.03621852]
[1744360648450,0.3608,81557.0,81545.0,0.1227028]
[1744360648655,0.1227028,81545.0,81544.0,0.3608]
[1744360649460,0.1227028,81545.0,81544.0,0.4835043]
[1744360649656,0.2016028,81545.0,81544.0,0.3608]
[1744360652064,0.1227223,81532.0,81528.0,0.3608]
[1744360652259,0.1227223,81532.0,81529.0,0.0831]
[1744360652455,0.1227223,81532.0,81531.0,0.56714232]
[1744360652656,0.1227223,81532.0,81531.0,0.5309238]
[1744360652851,0.1227223,81532.0,81531.0,0.4082]
[1744360654157,0.0613603,81534.0,81533.0,0.1227208]
[1744360654356,0.0613603,81534.0,81533.0,0.15893932]
[1744360654565,0.0613603,81534.0,81533.0,0.03621852]
[1744360655362,0.0613603,81534.0,81533.0,0.11701852]
[1744360655964,0.0613603,81534.0,81533.0,0.23973932]
[1744360656566,0.1227173,81536.0,81535.0,0.1840733]
[1744360656765,0.1227173,81536.0,81535.0,0.22029182]
[1744360656966,5.401e-05,81540.0,81539.0,0.1227118]
[1744360657169,0.12276431,81540.0,81539.0,0.1227118]
[1744360657463,5.401e-05,81540.0,81539.0,0.51973032]
[1744360657765,5.401e-05,81540.0,81539.0,0.60603032]
[1744360658163,0.1227046,81544.0,81543.0,0.1227058]
[1744360658362,0.1227046,81544.0,81543.0,0.15892432]
[1744360659176,0.1227046,81544.0,81543.0,0.32872432]
[1744360659470,0.1227446,81544.0,81543.0,0.32872432]
[1744360661865,4e-05,81544.0,81543.0,0.32872432]
[1744360662060,0.1227443,81544.0,81543.0,0.20601852]
[1744360662468,0.1227443,81544.0,81543.0,0.32872432]
[1744360662966,0.2848443,81544.0,81543.0,0.32872432]
[1744360663666,0.2848443,81544.0,81543.0,0.2925058]
[1744360663865,0.2848443,81544.0,81543.0,0.1698]
[1744360664365,0.2848443,81544.0,81543.0,0.2925058]
[1744360665366,0.2063443,81544.0,81543.0,0.2925058]
[1744360665567,0.1227031,81545.0,81544.0,0.1227043]
[1744360665967,0.1227031,81545.0,81544.0,0.1571]
[1744360666161,0.2084031,81545.0,81544.0,0.1571]
[1744360666567,0.2084031,81545.0,81544.0,0.2798043]
[1744360667365,0.0004,81546.0,81545.0,0.1227028]
[1744360667571,0.1231012,81546.0,81545.0,0.1227028]
[1744360667774,0.1231012,81546.0,81545.0,0.2877028]
[1744360671772,0.1231012,81546.0,81545.0,0.32392132]
[1744360672274,0.1231412,81546.0,81545.0,0.32392132]
[1744360675268,0.00044,81546.0,81545.0,0.57392132]
[1744360675476,1e-08,81555.0,81554.0,0.15890772]
[1744360675674,0.06139191,81563.0,81554.0,0.05297791]
[1744360675874,0.48355461,81559.0,81558.0,0.15890172]
[1744360676870,0.48355461,81559.0,81558.0,0.0679]
[1744360677474,0.61185461,81559.0,81558.0,0.0679]
[1744360679077,0.61185461,81559.0,81558.0,0.1905832]
[1744360680879,0.42417291,81559.0,81558.0,0.1905832]
[1744360681274,0.36087291,81559.0,81558.0,0.22680172]
[1744360681474,0.36087291,81559.0,81558.0,0.24364626]
[1744360681775,0.48355461,81559.0,81558.0,0.1905832]
[1744360682076,0.48355461,81559.0,81558.0,0.0679]
[1744360682478,0.61175461,81559.0,81558.0,0.0679]
[1744360684474,0.1226982,81548.0,81540.0,0.4082]
[1744360684778,0.1226997,81547.0,81546.0,0.21989384]
[1744360686268,0.2497997,81547.0,81546.0,0.21989384]
[1744360687580,0.1865397,81547.0,81546.0,0.21989384]
[1744360688281,0.2498397,81547.0,81546.0,0.00018402]
[1744360694575,0.2497997,81547.0,81546.0,0.00018402]
[1744360694783,0.2498397,81547.0,81546.0,0.00018402]
[1744360697383,4e-05,81547.0,81546.0,0.76990374]
[1744360697587,0.1226739,81565.0,81546.0,0.64720254]
[1744360697790,0.1226739,81565.0,81564.0,0.4834742]
[1744360698092,0.1226739,81565.0,81564.0,0.3608]
[1744360698479,0.1226739,81565.0,81564.0,0.4895]
[1744360698987,0.1227139,81565.0,81564.0,0.4895]
[1744360700484,4e-05,81565.0,81564.0,0.64839272]
[1744360700685,0.0004,81570.0,81569.0,0.1226667]
[1744360700885,0.0004,81570.0,81569.0,0.15888522]
[1744360701285,0.00044,81570.0,81569.0,0.27188522]
[1744360702187,0.0004,81570.0,81569.0,0.27188522]
[1744360702389,0.00044,81570.0,81569.0,0.27188522]
[1744360705087,0.1231051,81570.0,81569.0,0.27188522]
[1744360709193,0.12271601,81585.0,81580.0,0.1226501]
[1744360709393,7.291e-05,81585.0,81580.0,0.51966862]
[1744360709594,0.29296106,81588.0,81582.0,0.1226471]
[1744360709798,0.29296106,81588.0,81582.0,0.15886562]
[1744360710596,0.0004,81594.0,81593.0,0.1226306]
[1744360710788,0.1230291,81594.0,81593.0,0.51964912]
[1744360710991,0.0004,81594.0,81593.0,0.57534912]
[1744360711301,0.00044,81594.0,81593.0,0.62854912]
[1744360711500,0.0004,81594.0,81593.0,0.62854912]
[1744360711795,0.00044,81594.0,81593.0,0.62854912]
[1744360712092,0.0004,81594.0,81593.0,0.62854912]
[1744360712291,0.00044,81594.0,81593.0,0.62854912]
[1744360712486,0.1,81600.0,81599.0,0.1226216]
[1744360712691,0.1,81600.0,81599.0,0.15884012]
[1744360713294,0.25702385,81607.0,81606.0,0.122611]
[1744360713496,0.3299812,81618.0,81614.0,0.03621852]
[1744360713684,0.0612869,81631.0,81622.0,0.122587]
[1744360713887,5.401e-05,81627.0,81626.0,0.122581]
[1744360714098,0.0612869,81631.0,81630.0,0.15879352]
[1744360714303,0.122569,81636.0,81635.0,0.122566]
[1744360714489,0.122569,81636.0,81635.0,0.483366]
[1744360714801,0.122569,81636.0,81635.0,0.51958452]
[1744360715698,0.25583594,81641.0,81636.0,0.0612824]
[1744360715903,0.37839444,81641.0,81640.0,0.15877852]
[1744360716697,0.25587594,81641.0,81640.0,0.15877852]
[1744360717293,0.25583594,81641.0,81640.0,0.15877852]
[1744360717499,0.25587594,81641.0,81640.0,0.15877852]
[1744360717697,0.25583594,81641.0,81640.0,0.15877852]
[1744360717895,0.25587594,81641.0,81640.0,0.15877852]
[1744360718095,4e-05,81641.0,81640.0,0.15877852]
[1744360718291,5.401e-05,81654.0,81646.0,0.0612754]
[1744360718495,0.122536,81656.0,81653.0,0.03621852]
[1744360718801,4e-05,81654.0,81653.0,0.0612697]
[1744360719104,0.1225263,81663.0,81662.0,0.1837861]
[1744360719301,0.0612612,81665.0,81664.0,0.122524]
[1744360719795,0.0613012,81665.0,81664.0,0.122524]
[1744360720593,0.0612612,81665.0,81664.0,0.122524]
[1744360720793,0.0613012,81665.0,81664.0,0.122524]
[1744360721408,0.1225285,81662.0,81661.0,0.1225274]
[1744360721806,0.1225285,81662.0,81661.0,0.15874592]
[1744360722308,0.1225685,81662.0,81661.0,0.15874592]
[1744360724407,0.0612708,81653.0,81647.0,0.1173743]
[1744360724705,0.1225435,81651.0,81650.0,0.39701852]
[1744360724903,0.1225495,81647.0,81645.0,0.00925222]
[1744360725096,0.1225495,81647.0,81642.0,0.3608]
[1744360725497,0.1225495,81647.0,81644.0,0.1225526]
[1744360725706,0.1778495,81647.0,81644.0,0.1225526]
[1744360726007,0.1225495,81647.0,81646.0,0.12273479]
[1744360726507,0.1225495,81647.0,81646.0,0.15895331]
[1744360727196,0.1225895,81647.0,81646.0,0.15895331]
[1744360729209,0.1225895,81647.0,81646.0,0.12273479]
[1744360731106,0.1225895,81647.0,81646.0,0.00018379]
[1744360732514,0.1225895,81647.0,81646.0,0.06638379]
[1744360732911,0.1225895,81647.0,81646.0,0.03258379]
[1744360734103,0.36395727,81649.0,81646.0,0.03258379]
[1744360734309,0.0339,81648.0,81646.0,0.03258379]
[1744360734922,0.1225495,81647.0,81646.0,0.03258379]
[1744360735415,0.1225495,81647.0,81646.0,0.19053479]
[1744360737307,0.1225495,81647.0,81646.0,0.20857411]
[1744360738613,0.1225495,81647.0,81646.0,0.05062311]
[1744360738919,0.4559738,81649.0,81646.0,0.05062311]
[1744360739112,0.122548,81648.0,81647.0,0.01803932]
[1744360739418,0.122548,81648.0,81647.0,0.05240556]
[1744360740419,0.122548,81648.0,81647.0,0.06854085]
[1744360740914,0.122548,81648.0,81647.0,0.22474329]
[1744360741406,0.28714334,81649.0,81647.0,0.22474329]
[1744360741607,0.183814,81653.0,81652.0,0.122539]
[1744360741812,7.291e-05,81655.0,81654.0,0.122539]
[1744360742013,7.291e-05,81655.0,81654.0,0.17781602]
[1744360742220,0.12261041,81655.0,81654.0,0.19395131]
[1744360742411,0.00020578,81655.0,81654.0,0.26325131]
[1744360742825,0.12274328,81655.0,81654.0,0.26325131]
[1744360743131,0.1225375,81655.0,81654.0,0.26325131]
[1744360743426,1e-08,81682.0,81681.0,0.1224985]
[1744360743613,0.0339,81710.0,81689.0,0.03582031]
[1744360743808,0.0339,81710.0,81674.0,0.4959855]
[1744360743809,7.291e-05,81720.0,81713.0,0.1224505]
[1744360744011,0.122849,81714.0,81713.0,0.03519379]
[1744360744212,0.122889,81714.0,81713.0,0.03519379]
[1744360744409,0.00044,81714.0,81713.0,0.03519379]
[1744360744615,0.00044,81714.0,81713.0,0.15764429]
[1744360744818,0.122889,81714.0,81713.0,0.03519379]
[1744360745916,0.00044,81714.0,81713.0,0.1934646]
[1744360746218,0.11250919,81740.0,81721.0,0.0612186]
[1744360746426,0.4220099,81734.0,81727.0,0.1224295]
[1744360746618,0.54443,81734.0,81727.0,0.0190585]
[1744360746813,0.1224254,81731.0,81730.0,0.1224238]
[1744360747013,5.401e-05,81734.0,81733.0,0.15824081]
[1744360747214,0.12239,81755.0,81749.0,0.0611981]
[1744360747419,0.1227771,81762.0,81761.0,0.03582031]
[1744360747626,0.0004,81762.0,81761.0,0.17733415]
[1744360748335,5.401e-05,81773.0,81772.0,0.1223621]
[1744360748535,0.3608,81791.0,81778.0,0.0611759]
[1744360748725,0.0324,81799.0,81772.0,0.41575555]
[1744360748726,0.3608,81815.0,81799.0,0.1223217]
[1744360748927,7.291e-05,81802.0,81801.0,0.1223187]
[1744360749138,0.00935318,81830.0,81809.0,0.1223068]
[1744360749336,0.00935318,81830.0,81825.0,0.1222821]
[1744360749527,0.00935318,81830.0,81804.0,0.10332]
[1744360749528,0.13162858,81830.0,81829.0,0.39662031]
[1744360749723,0.1222918,81819.0,81818.0,0.03582031]
[1744360749932,0.00939318,81830.0,81818.0,0.03582031]
[1744360749933,0.00939318,81830.0,81822.0,0.0611431]
[1744360750135,0.0324,81880.0,81857.0,0.1222351]
[1744360750338,0.1226336,81858.0,81857.0,0.39662023]
[1744360750728,0.1226336,81858.0,81857.0,0.3608]
[1744360751437,0.1222455,81850.0,81849.0,1e-08]
[1744360751635,0.4830455,81850.0,81849.0,1e-08]
[1744360751829,0.1222455,81850.0,81849.0,1e-08]
[1744360752224,0.1222709,81833.0,81832.0,0.3608]
[1744360752429,0.0611386,81829.0,81824.0,0.3608]
[1744360752642,0.1223023,81812.0,81811.0,0.3942]
[1744360753039,0.1223023,81812.0,81776.0,0.0611778]
[1744360753040,0.1223202,81800.0,81793.0,0.3608]
[1744360753427,0.46408,81800.0,81792.0,0.34991818]
[1744360753627,0.5864402,81800.0,81793.0,0.0334]
[1744360753832,0.1223262,81796.0,81795.0,0.21656444]
[1744360754034,0.12183727,81796.0,81795.0,0.21656444]
[1744360754438,0.47507727,81796.0,81791.0,0.00018331]
[1744360754646,0.10324,81796.0,81790.0,1e-08]
[1744360754833,0.10324,81796.0,81792.0,0.03582023]
[1744360755142,0.2255662,81796.0,81795.0,0.03582023]
[1744360755443,0.2256062,81796.0,81795.0,0.03582023]
[1744360755741,0.2256062,81796.0,81795.0,0.10652023]
[1744360756342,0.1223662,81796.0,81795.0,0.22884793]
[1744360756638,0.1223662,81796.0,81795.0,0.0354]
[1744360756833,0.1223337,81791.0,81790.0,1e-08]
[1744360757032,0.061164,81795.0,81787.0,0.00067238]
[1744360757033,0.1223382,81788.0,81787.0,0.00067238]
[1744360757230,0.1223382,81788.0,81787.0,0.00018331]
[1744360757440,0.1223741,81764.0,81763.0,0.00048922]
[1744360757744,0.2302141,81764.0,81763.0,0.00048922]
[1744360758035,0.23135897,81764.0,81763.0,0.00048922]
[1744360758630,0.1223906,81753.0,81752.0,0.3608]
[1744360759134,0.12353547,81753.0,81752.0,0.3608]
[1744360759535,0.12353547,81753.0,81752.0,0.2608]
[1744360759738,0.0611984,81749.0,81745.0,0.3608]
[1744360759934,0.1223996,81747.0,81746.0,0.0358]
[1744360760240,0.12383038,81747.0,81746.0,0.0358]
[1744360760443,0.122401,81746.0,81745.0,0.3608]
[1744360760745,0.122425,81730.0,81729.0,0.3608]
[1744360760939,0.122434,81724.0,81723.0,0.0308]
[1744360761146,0.12244,81720.0,81719.0,0.3608]
[1744360761852,0.12415669,81720.0,81719.0,0.3608]
[1744360762238,0.122452,81712.0,81711.0,0.00018355]
[1744360762944,0.12416869,81712.0,81711.0,0.00018355]
[1744360763349,0.12416869,81712.0,81711.0,0.15845728]